Cogmind - Beta 16 @@@ ROGUE MODE // 2025.12.26 @ 18:11:17 Player: teh_pwnerer Result: Destroyed by as-60900 with Assembled Heavy Rifle Performance ------------- Evolutions (0) 0 Regions Visited (2) 400 Robots Destroyed (8) 40 Value Destroyed (223) 223 Prototype IDs (0) 0 Alien Tech Used (0) 0 Bonus (0) 0 TOTAL SCORE: 663 Bonus ------- None Cogmind --------- Core Integrity 0/250 Matter 300/300 Energy 95/100 System Corruption 0% Temperature Cool (0) Movement Walking (120) Location -10/Mines Parts ------- > --- POWER (1) -------- (None) > --- PROPULSION (2) --- Aluminum Leg Aluminum Leg > --- UTILITY (2) ------ Heat Sink Structural Scanner > --- WEAPON (2) ------- Small Laser > --- INVENTORY (5) ---- Small Laser Heavy Assault Rifle Signal Generator Peak State ------------ > --- POWER ------------ Ion Engine > --- PROPULSION ------- Aluminum Leg Aluminum Leg > --- UTILITY ---------- Heat Sink Structural Scanner > --- WEAPON ----------- Small Laser Small Laser > --- INVENTORY -------- Small Laser Heavy Assault Rifle [Rating: 7] Favorites ----------- Power Ion Engine Engine Ion Engine Propulsion Aluminum Leg Leg Aluminum Leg Wheel Wheel Utility Heat Sink Device Heat Sink Protection Medium Armor Plating Weapon Small Laser Energy Gun Small Laser Ballistic Gun Heavy Assault Rifle Special Melee Weapon Datajack Build | -11 -10 -10 ------- Run | Yrd Mat Min Slots Evolved . | . . . Power . | . . . Propulsion . | . . . Utility . | . . . Weapon . | . . . Parts Attached 16 | 4 12 . Power 2 | 1 1 . Engine 2 | 1 1 . Core . | . . . Reactor . | . . . Propulsion 5 | 2 3 . Treads . | . . . Leg 3 | . 3 . Wheel 2 | 2 . . Hover . | . . . Flight . | . . . Utility 4 | . 4 . Device 3 | . 3 . Storage . | . . . Processor . | . . . Hackware . | . . . Protection 1 | . 1 . Artifact . | . . . Weapon 5 | 1 4 . Energy Gun 3 | 1 2 . Energy Cannon . | . . . Ballistic Gun 1 | . 1 . Ballistic Cannon . | . . . Launcher . | . . . Special Weapon . | . . . Impact Weapon . | . . . Slashing Weapon . | . . . Piercing Weapon . | . . . Special Melee Weapon 1 | . 1 . Unidentified Prototypes . | . . . Parts Lost 8 | . 6 2 Power 1 | . . 1 Propulsion 2 | . 2 . Utility 2 | . 2 . Weapon 3 | . 2 1 Highest Loss Streak 5 | . 5 2 To Critical Strikes . | . . . Average Backups . | . . 2 Power . | . . . Propulsion . | . . . Utility . | . . . Weapon . | . . 2 Tool/Special . | . . . Unused Backups 3 | 1 1 1 Power 1 | 1 . . Propulsion . | . . . Utility 1 | . 1 . Weapon 1 | . . 1 Tool/Special . | . . . Average Slot Usage (%) 69 | . 64 100 Engine 8 | . 7 14 Leg 16 | . 14 28 Wheel 9 | . 10 . Device 11 | . 8 28 Protection 2 | . 3 . Energy Gun 17 | . 15 28 Ballistic Gun 3 | . 3 . Peak Build Rating 7 | 3 7 7 Average Rating 4 | 1 5 6 On Entrance 3 | . 3 7 Avg Prop Armor Cover (%) . | . . . Naked Turns . | . . . Heaviest Build 10 | 5 10 9 Greatest Support 20 | 20 20 20 Greatest Overweight (x) 1 | 1 1 . Average Overweight (x) . | . . . Largest Inventory Capacity 5 | 5 5 5 Average Capacity 5 | 5 5 5 Most Carried 4 | 2 4 3 Average Carried . | . . 2 Final Capacity 5 | 5 5 5 Final Carried 3 | . 2 3 Class Distribution -------------------- 52% | Scavenger-Mutant 47% | Mutant Dominant Class ---------------- Scavenger-Mutant | -10/Materials Scavenger-Mutant | -10/Mines Resources | -11 -10 -10 ----------- Run | Yrd Mat Min Matter Collected 374 | 171 203 . Remotely . | . . . Salvage Created 298 | . 279 19 Parts 14 | . 12 2 Haulers Intercepted . | . . . Recyclers Shooed . | . . . Parts Field Recycled . | . . . Retrieved Matter . | . . . Parts Self-Destructed . | . . . Prevented . | . . . Parts Restored . | . . . Kills | -11 -10 -10 ------- Run | Yrd Mat Min Combat Hostiles Destroyed 6 | . 5 1 Guns 6 | . 5 1 Classes Destroyed 4 | . 3 1 Worker 1 | . 1 . Watcher 1 | . 1 . Swarmer 1 | . . 1 Grunt 5 | . 5 . Best Kill Streak 2 | . 2 1 Combat Bots Only 2 | . 2 1 Max Kills in Single Turn 1 | . 1 1 Gunslinging . | . . . Exploded . | . . . Melee . | . . . Uniques/NPCs Destroyed . | . . . Combat | -11 -10 -10 -------- Run | Yrd Mat Min Hostile Shots Fired 74 | . 56 18 Missed 14 | . 14 . Hits 60 | . 42 18 Projectile 60 | . 42 18 AOE 4 | . . 4 Critical Strikes 1 | . 1 . Damage Taken 892 | . 581 311 Core 262 | . 182 80 Absorbed by Shields . | . . . Core Remaining (%) 100 | 100 . . Volleys Fired 45 | 1 36 8 Largest 2 | 1 2 2 Hottest 80 | 40 80 80 Shots Fired 63 | 1 47 15 Gun 63 | 1 47 15 Cannon . | . . . Launcher . | . . . Special . | . . . Kinetic 18 | . 18 . Thermal 31 | . 16 15 Explosive . | . . . Electromagnetic 14 | 1 13 . Robot Hit Streak 13 | 1 13 4 Robot Miss Streak 3 | . 3 3 Penetration Max . | . . . Secondary Targets . | . . . Shots Hit Robots 41 | 1 33 7 Core Hits 16 | . 14 2 Critical Kills . | . . . Critical Parts Destroyed . | . . . Critical Strikes 1 | 1 . . Corrupt 1 | 1 . . Melee Attacks 1 | . 1 . Impact . | . . . Slashing . | . . . Piercing . | . . . Sneak Attacks . | . . . Combat Hostiles . | . . . Follow-up Attacks . | . . . Damage Inflicted 547 | 15 444 88 Guns 547 | 15 444 88 Cannons . | . . . Explosions . | . . . Melee . | . . . Ramming . | . . . Kinetic 243 | . 243 . Thermal 196 | . 108 88 Explosive . | . . . Electromagnetic 108 | 15 93 . Impact . | . . . Slashing . | . . . Piercing . | . . . Highest Corruption . | . . . Average Corruption . | . . . Corruption Purged . | . . . Corruption Blocked . | . . . Overload Shots . | . . . Overflow Damage . | . . . Projectiles . | . . . Explosions . | . . . Melee . | . . . Knockbacks . | . . . Impact . | . . . Kinetic . | . . . Secondary . | . . . Self-Inflicted Damage . | . . . Shots . | . . . Rammed . | . . . Targets Rammed . | . . . Kicked . | . . . Crushed . | . . . Highest Temperature 102 | . 102 . Average Temperature 27 | . 27 . Received Heat Transfer 345 | . 345 . Siege Activations . | . . . Martial Activations . | . . . Shielding Activations . | . . . Robots Disrupted . | . . . Combat Hostiles . | . . . Robots Corrupted . | . . . Combat Hostiles . | . . . Parts Fried . | . . . Impact Corruptions . | . . . Robots Melted . | . . . Combat Hostiles . | . . . Parts Melted . | . . . Heat Transferred 450 | . 250 200 Parts Sabotaged . | . . . Parts Stolen . | . . . Parts Stripped . | . . . Power Chain Reactions . | . . . Alert | -11 -10 -10 ------- Run | Yrd Mat Min Maximum Alert Level . | . . . Low Security (%) 100 | 100 100 100 Level 1 . | . . . Level 2 . | . . . Level 3 . | . . . Level 4 . | . . . Level 5 . | . . . High Security . | . . . Max Security . | . . . Peak Influence 62 | . 62 20 Initial 1 | . . 1 Average 21 | . 26 4 Influence Increases 292 | . 272 20 Destroy 0b10 Robot/C 120 | . 100 20 Destroy 0b10 Robot/NC 10 | . 10 . Destroy Leader 32 | . 32 . Successful Hack 10 | . 10 . Lose Combat Pursuer 120 | . 120 . Influence Decreases 292 | . 266 26 Entered New Map 5 | . . 5 Time Decay 227 | . 206 21 Lost Part 60 | . 60 . Squads Dispatched 1 | . 1 . Investigation . | . . . Extermination . | . . . Reinforcement 1 | . 1 . Assault . | . . . Garrison . | . . . Intercept . | . . . Searches Triggered . | . . . Construction Impeded . | . . . Haulers Reinforced . | . . . Active Scanning Responses . | . . . Cargo Convoy Interrupts . | . . . Stealth | -11 -10 -10 --------- Run | Yrd Mat Min Distress Signals 3 | . 3 . Communications Jammed . | . . . Distress Signals . | . . . Times Spotted 34 | . 16 18 Peak Tracking Total 18 | . 3 18 Tactical Retreats 5 | . 4 1 Traps | -11 -10 -10 ------- Run | Yrd Mat Min Traps Triggered . | . . . Indirectly . | . . . Trap Hack Attempts . | . . . Triggered . | . . . Disarmed . | . . . Reprogrammed . | . . . Reused . | . . . Traps Extracted . | . . . Installed . | . . . Triggered . | . . . Machines | -11 -10 -10 ---------- Run | Yrd Mat Min Machines Disabled . | . . . Max in Single Turn . | . . . Machines Repaired . | . . . Machines Dismantled . | . . . Machines Sabotaged . | . . . Overloaded Fab Kills . | . . . Hacking | -11 -10 -10 --------- Run | Yrd Mat Min Machines Accessed 1 | . 1 . Terminals . | . . . Fabricators . | . . . Repair Stations . | . . . Recycling Units 1 | . 1 . Scanalyzers . | . . . Garrison Access . | . . . Total Hacks 3 | . 3 . Successful 3 | . 3 . Failed . | . . . Catastrophic . | . . . Database Lockouts . | . . . Manual . | . . . Terminals . | . . . Fabricators . | . . . Repair Stations . | . . . Recycling Units 3 | . 3 . Scanalyzers . | . . . Garrison Access . | . . . Terminal Hacks . | . . . Fabricator Hacks . | . . . Repair Station Hacks . | . . . Recycling Unit Hacks 3 | . 3 . Recycle Component 2 | . 2 . Retrieve Components 1 | . 1 . Scanalyzer . | . . . Garrison Access Hacks . | . . . Unauthorized Hacks . | . . . Terminals . | . . . Fabricators . | . . . Repair Stations . | . . . Recycling Units . | . . . Scanalyzers . | . . . Garrison Access . | . . . Data Cores Recovered . | . . . Used . | . . . Hacking Detections . | . . . Full Trace Events . | . . . Feedback Events . | . . . Feedback Blocked . | . . . Robot Schematics Acquired . | . . . Robots Built . | . . . Authchips . | . . . Time . | . . . Total Robot Build Rating . | . . . Part Schematics Acquired . | . . . Parts Built . | . . . Authchips . | . . . Time . | . . . Total Part Build Rating . | . . . Part Studies Acquired . | . . . Parts Repaired . | . . . Time . | . . . Parts Recycled 2 | . 2 . Recycled Matter . | . . . Retrieved Matter . | . . . Retrieved Components 5 | . 5 . Parts Scanalyzed . | . . . Part Schematics Acquired . | . . . Parts Damaged . | . . . Bothacking | -11 -10 -10 ------------ Run | Yrd Mat Min Used RIF Installer . | . . . Robots Hacked 1 | . 1 . Non-combat . | . . . Combat 1 | . 1 . Robot Hacks Applied 1 | . 1 . parse_system 1 | . 1 . Relay Couplers Released . | . . . Fabnet Peak Effective % . | . . . Robots Rewired . | . . . Allies Hacked . | . . . Hacks Repelled . | . . . Allies | -11 -10 -10 -------- Run | Yrd Mat Min Total Allies . | . . . Largest Group . | . . . Highest-Rated Group . | . . . Highest-Rated Ally . | . . . Total Orders . | . . . Ally Attacks . | . . . Total Damage . | . . . Kills . | . . . Allies Corrupted . | . . . Allies Melted . | . . . Intel | -11 -10 -10 ------- Run | Yrd Mat Min Active Infowar (turns) 317 | . 229 88 Terrain 164 | . 164 . Structural 153 | . 65 88 Robot Analysis Total . | . . . Derelict Logs Recovered . | . . . Drone Launches . | . . . Drone Recoveries . | . . . Exploration | -11 -10 -10 ------------- Run | Yrd Mat Min Turns Passed 686 | 68 530 88 Spaces Moved 380 | 72 262 46 Core 78 | 52 26 . Treads . | . . . Legs 131 | . 85 46 Wheels 171 | 20 151 . Hover . | . . . Flight . | . . . Fastest Speed 50 | 50 50 120 Average Speed 89 | 63 90 120 Slowest Speed 120 | 100 120 120 Overloaded Moves . | . . . Propulsion Burnouts . | . . . Robots Hopped . | . . . Potential Cave-ins . | . . . Cave-ins Triggered . | . . . Exploration Rate (%) 13 | 4 26 10 Regions Visited 2 Branch Regions 1 Pre-discovered Areas . | . . . Known Exits Taken . | . . . Unknown Exits Taken 2 | 1 1 . Scrap Searched . | . . . Spaces Dug . | . . . Terrain Destroyed . | . . . Melee . | . . . Projectile . | . . . AOE . | . . . Terrain Rammed . | . . . Walls Destroyed . | . . . Machines Disabled . | . . . Actions | -11 -10 -10 --------- Run | Yrd Mat Min Total 663 | 94 505 64 Wait 199 | 11 179 9 Move 378 | 71 261 46 Hop . | . . . Pick Up 21 | 5 15 1 Fast Attach . | . . . Attach 14 | 4 10 . Detach . | . . . Swap 2 | . 2 . Drop 3 | 2 1 . Fire 45 | 1 36 8 Melee 1 | . 1 . Ram . | . . . Kick . | . . . Crush . | . . . Escape Stasis . | . . . Rewire . | . . . Trap . | . . . Miscellaneous . | . . . Route ------- -11/Scrapyard -10/Materials -10/Mines History --------- Turn | Location | Event 26 | -11/Scrapyard | Discovered new exit (range 16) 69 | -11/Scrapyard | Entered Materials 292 | -10/Materials | Core integrity fell below 50% 316 | -10/Materials | Build established: Mutant 330 | -10/Materials | Lost 5 parts (2n2u1w) 415 | -10/Materials | Discovered new exit (range 16) 599 | -10/Materials | Entered Mines 600 | -10/Mines | Met a Derelict testing a Signal Generator 603 | -10/Mines | Found Signal Generator 631 | -10/Mines | Build established: Scavenger-Mutant 667 | -10/Mines | Assembled infested the area 681 | -10/Mines | Core integrity fell below 20% 687 | -10/Mines | Destroyed by as-60900 with Assembled Heavy Rifle Last Messages --------------- K-01 Serf collects debris. as-30461 destroyed. as-95447 destroyed. as-33622 destroyed. U-05 Engineer lays Concrete. K-01 Serf destroyed. as-62454 destroyed. U-05 Engineer lays Concrete. Ion Engine destroyed. U-05 Engineer lays Concrete. U-05 Engineer builds a Wall. The unstable cave ceiling collapses. D-53 Grenadier destroyed. Sml. Laser destroyed. as-34121 destroyed. as-57233 destroyed. as-71130 destroyed. U-05 Engineer destroyed. U-05 Engineer lays Concrete. K-01 Serf collects debris. Map ----- +----------------------------------------------------+ | | | | | | | | | ???????????????????????????????????????????? | | ????????????????######?????????????????????? | | ???????????????########????????????????????? | | ???????????????### ###????????????????????? | | ???????????????## ###???????????????????? | | ???????????????## ###???????????????????? | | ???????????????### ##???????????????????? | | ??????????????#### ##???????????????????? | | ??????????????### ##???????????????????? | | ??????????????## ##???????????????????? | | ??????????????## ###???????????????????? | | ??## ???? ###### ####???????????????????? | | ??## =###### #####????????????????????? | | ??## *%[%=%= #####????????????????????? | | ??## #######% ###????????????????????? | | ??## ???#######r ##????????????????????? | | ???????????### r ##????????????????????? | | ???????????## = ##????????????????????? | | ???????????## ##????????????????????? | | ???????????## =d ##????????????????????? | | ???????????### *% ##????????????????????? | | ???????????### % @ ##????????????????????? | | ???????????## #= ##????????????????????? | | ???????????## ##????????????????????? | | ??????????? # ###????????????????????? | | ????????? u%* # ????????????????????? | | ????????? ##= % ## ????????????????????? | | ?????????### # ????????????????????? | | ??????????## a% ##?????????????????????? | | ??????????### ##?????????????????????? | | ??????????## k ?????????????????????? | | ??????????? a ?????????????????????? | | ?????????? ##?????????????????????? | | ?????????? a a ###?????????????????????? | | ???????????? #####?????????????????????? | | ???????????? #####??????????????????????? | | ???????????? ##?????????????????????????? | | ?????????????? ???????????????????????????? | | ???????????????????????????????????????????? | | ???????????????????????????????????????????? | | ???????????????????????????????????????????? | | ???????????????????????????????????????????? | | ???????????????????????????????????????????? | | ???????????????????????????????????????????? | | ???????????????????????????????????????????? | | ???????????????????????????????????????????? | +----------------------------------------------------+ Best States ------------- Heat Dissipation 35 Energy Generation 10 Energy Capacity 250 Matter Stores 300 Matter Capacity 300 Sight Range 16 Terrain Scan Range 14 Terrain Scan Density 10 Armor Coverage 225 Evasion (%) 55 Item Schematics ----------------- None Robot Schematics ------------------ None Fabricated ------------ Nothing Repaired ---------- Nothing Studied --------- None Alien Tech Used ----------------- None Achievements -------------- None Challenges ------------ None Game ------ Seed ActiveChainThruster Manual? 0 Play Time 00:23:21 Cumulative 2.0 hours Start 2025.12.26 @ 17:34:37 End 2025.12.26 @ 18:11:17 Sessions 1 Manual Loads 0 Difficulty Rogue Special Mode None Game No. 4 Rogue 4 Adventurer 0 Explorer 0 Win Type - Total 0 Types 0/0/0/0/0/0/0/0/0/0 Lore% 0 Gallery% 3 Achievement% 3 Wizard Run 0 Options --------- Layout 1 ASCII 0 Keyboard 0 Movement Mouse Keybinds 0 Fullscreen 1 Font 24/Smallcaps Map View 50x35 Zoom Use 0% Tactical HUD 0 Map Filters NONE Filters NONE Steam 1 RUN: a47f9e6d-2a18-4ccd-bf92-d92cc1996540